Cogmind - Beta 11.1 @@@ ROGUE MODE // 2022.04.29 @ 16:46:20 Player: Runia Result: Destroyed by D-53 Grenadier with Mini Grenade Launcher Performance ------------- Evolutions (0) 0 Regions Visited (2) 400 Robots Destroyed (15) 75 Value Destroyed (367) 367 Prototype IDs (4) 80 Alien Tech Used (0) 0 Bonus (0) 0 TOTAL SCORE: 922 Bonus ------- None Cogmind --------- Core Integrity 0/250 Matter 226/300 Energy 83/125 System Corruption 0% Temperature Cool (0) Movement Treading (320) Ox2 Location -10/Mines Parts ------- > --- POWER (1) -------- Light Ion Engine > --- PROPULSION (2) --- Light Treads Light Treads > --- UTILITY (2) ------ Huge Storage Unit > --- WEAPON (2) ------- Assault Rifle Light Assault Rifle > --- INVENTORY (25) --- Light Treads Light Treads Light Treads Light Treads Improved Heat Sink High-capacity Matter Pod (200) Light Armor Plating Light Armor Plating Grenade Launcher Grenade Launcher Grenade Launcher Mining Laser Peak State ------------ > --- POWER ------------ Ion Engine > --- PROPULSION ------- Light Treads Light Treads > --- UTILITY ---------- Huge Storage Unit Light Armor Plating > --- WEAPON ----------- Medium Laser Light Assault Rifle > --- INVENTORY -------- Light Ion Engine Light Treads Light Treads Light Treads Light Treads Light Treads Light Treads Improved Heat Sink High-capacity Matter Pod Light Armor Plating Light Armor Plating Assault Rifle Light Assault Rifle Light Cannon Grenade Launcher Grenade Launcher Grenade Launcher Mining Laser [Rating: 9] Favorites ----------- Power Ion Engine Engine Ion Engine Propulsion Light Treads Treads Light Treads Leg Aluminum Leg Utility Light Armor Plating Storage Huge Storage Unit Protection Light Armor Plating Weapon Light Assault Rifle Energy Gun Medium Laser Ballistic Gun Light Assault Rifle Ballistic Cannon Light Cannon Launcher Grenade Launcher Build | -11 -10 -10 ------- Run | Scr Mat Min Slots Evolved . | . . . Power . | . . . Propulsion . | . . . Utility . | . . . Weapon . | . . . Parts Attached 17 | 2 7 8 Power 2 | . 1 1 Engine 2 | . 1 1 Core . | . . . Reactor . | . . . Propulsion 4 | 2 . 2 Treads 4 | 2 . 2 Leg . | . . . Wheel . | . . . Hover . | . . . Flight . | . . . Utility 4 | . 4 . Device . | . . . Storage 2 | . 2 . Processor . | . . . Hackware . | . . . Protection 2 | . 2 . Artifact . | . . . Weapon 7 | . 2 5 Energy Gun . | . . . Energy Cannon . | . . . Ballistic Gun 4 | . 1 3 Ballistic Cannon 1 | . . 1 Launcher 2 | . 1 1 Special Weapon . | . . . Impact Weapon . | . . . Slashing Weapon . | . . . Piercing Weapon . | . . . Special Melee Weapon . | . . . Unidentified Prototypes . | . . . Parts Lost 7 | . 1 6 Power 1 | . . 1 Propulsion 2 | . . 2 Utility 2 | . 1 1 Weapon 2 | . . 2 Highest Loss Streak 6 | . 1 6 To Critical Strikes . | . . . Average Slot Usage (%) 99 | . 99 99 Engine 14 | . 14 14 Treads 28 | . 28 28 Storage 14 | . 14 14 Protection 13 | . 13 13 Energy Gun 10 | . 14 . Ballistic Gun 16 | . 13 27 Naked Turns . | . . . Heaviest Build 92 | 13 91 92 Greatest Support 40 | 40 40 40 Greatest Overweight (x) 2 | . 2 2 Average Overweight (x) . | . . 2 Largest Inventory Capacity 25 | 8 25 25 Average Capacity 17 | 8 15 25 Most Carried 18 | 6 18 18 Average Carried 12 | 3 10 16 Final Capacity 25 | 8 25 25 Final Carried 18 | 2 18 12 Class Distribution -------------------- 100% | Mutant Dominant Class ---------------- Mutant | -10/Materials Mutant | -10/Mines Resources | -11 -10 -10 ----------- Run | Scr Mat Min Matter Collected 548 | 200 348 . Remotely . | . . . Salvage Created 517 | . 517 . Parts 29 | . 29 . Haulers Intercepted 2 | . 2 . Recyclers Shooed . | . . . Parts Field Recycled . | . . . Retrieved Matter . | . . . Parts Self-Destructed . | . . . Prevented . | . . . Kills | -11 -10 -10 ------- Run | Scr Mat Min Combat Hostiles Destroyed 12 | . 12 . Guns 11 | . 11 . AOE 1 | . 1 . Classes Destroyed 4 | . 4 . Worker 1 | . 1 . Hauler 2 | . 2 . Swarmer 3 | . 3 . Grunt 9 | . 9 . Best Kill Streak 5 | . 5 . Combat Bots Only 5 | . 5 . Max Kills in Single Turn 1 | . 1 . Gunslinging . | . . . Exploded 1 | . 1 . Melee . | . . . Uniques/NPCs Destroyed . | . . . Combat | -11 -10 -10 -------- Run | Scr Mat Min Damage Taken 1287 | . 481 806 Core 250 | . 74 176 Absorbed by Shields . | . . . Core Remaining (%) 100 | 100 . . Volleys Fired 50 | . 45 5 Largest 2 | . 2 2 Hottest 70 | . 70 55 Shots Fired 98 | . 88 10 Gun 92 | . 86 6 Cannon 4 | . . 4 Launcher 2 | . 2 . Special . | . . . Kinetic 53 | . 43 10 Thermal 43 | . 43 . Explosive 2 | . 2 . Electromagnetic . | . . . Robot Hit Streak 8 | . 8 7 Robot Miss Streak 6 | . 6 1 Penetration Max . | . . . Secondary Targets 3 | . 3 . Max Gunslinging Chain 1 | . 1 . Shots Hit Robots 60 | . 52 8 Core Hits 29 | . 27 2 Critical Kills . | . . . Critical Parts Destroyed . | . . . Critical Strikes 2 | . 2 . Burn 2 | . 2 . Melee Attacks . | . . . Impact . | . . . Slashing . | . . . Piercing . | . . . Sneak Attacks . | . . . Combat Hostiles . | . . . Follow-up Attacks . | . . . Damage Inflicted 764 | . 674 90 Guns 578 | . 536 42 Cannons 48 | . . 48 Explosions 138 | . 138 . Melee . | . . . Ramming . | . . . Kinetic 293 | . 203 90 Thermal 333 | . 333 . Explosive 138 | . 138 . Electromagnetic . | . . . Impact . | . . . Slashing . | . . . Piercing . | . . . Highest Corruption . | . . . Average Corruption . | . . . Corruption Purged . | . . . Corruption Blocked . | . . . Overload Shots . | . . . Overflow Damage . | . . . Projectiles . | . . . Explosions . | . . . Melee . | . . . Knockbacks . | . . . Impact . | . . . Kinetic . | . . . Secondary . | . . . Self-Inflicted Damage . | . . . Shots . | . . . Rammed 1 | . 1 . Targets Rammed 1 | . 1 . Kicked . | . . . Crushed . | . . . Highest Temperature 259 | . 259 40 Average Temperature 75 | . 79 16 Received Heat Transfer 216 | . 216 . Siege Activations . | . . . Robots Corrupted . | . . . Combat Hostiles . | . . . Parts Fried . | . . . Impact Corruptions . | . . . Robots Melted . | . . . Combat Hostiles . | . . . Parts Melted 3 | . 3 . Heat Transferred 1110 | . 1110 . Parts Sabotaged . | . . . Parts Stolen . | . . . Parts Stripped . | . . . Power Chain Reactions . | . . . Missiles Intercepted . | . . . Alert | -11 -10 -10 ------- Run | Scr Mat Min Peak Influence 323 | . 323 70 Initial 70 | . . 70 Average 149 | . 174 68 Maximum Alert Level 1 | . 1 . Low Security (%) 75 | 100 67 100 Level 1 24 | . 32 . Level 2 . | . . . Level 3 . | . . . Level 4 . | . . . Level 5 . | . . . High Security . | . . . Max Security . | . . . Squads Dispatched 3 | . 3 . Investigation 2 | . 2 . Extermination . | . . . Reinforcement 1 | . 1 . Assault . | . . . Garrison . | . . . Intercept . | . . . Searches Triggered . | . . . Construction Impeded . | . . . Haulers Reinforced . | . . . Active Scanning Responses . | . . . Cargo Convoy Interrupts . | . . . Stealth | -11 -10 -10 --------- Run | Scr Mat Min Distress Signals 1 | . 1 . Communications Jammed . | . . . Distress Signals . | . . . Times Spotted 30 | . 28 2 Peak Tracking Total 4 | . 4 2 Tactical Retreats 2 | . 2 . Traps | -11 -10 -10 ------- Run | Scr Mat Min Traps Triggered 1 | . 1 . Indirectly . | . . . Trap Hack Attempts . | . . . Triggered . | . . . Disarmed . | . . . Reprogrammed . | . . . Reused . | . . . Traps Extracted . | . . . Installed . | . . . Triggered . | . . . Machines | -11 -10 -10 ---------- Run | Scr Mat Min Machines Disabled . | . . . Max in Single Turn . | . . . Machines Sabotaged . | . . . Garrisons Compromised . | . . . Overloaded Fab Kills . | . . . Hacking | -11 -10 -10 --------- Run | Scr Mat Min Machines Accessed 7 | . 7 . Terminals 6 | . 6 . Fabricators . | . . . Repair Stations . | . . . Recycling Units 1 | . 1 . Scanalyzers . | . . . Garrison Access . | . . . Total Hacks 17 | . 17 . Successful 10 | . 10 . Failed 6 | . 6 . Catastrophic . | . . . Database Lockouts 1 | . 1 . Manual 9 | . 9 . Terminals 16 | . 16 . Fabricators . | . . . Repair Stations . | . . . Recycling Units 1 | . 1 . Scanalyzers . | . . . Garrison Access . | . . . Terminal Hacks 8 | . 8 . Robot Analysis 3 | . 3 . Prototype ID Bank 2 | . 2 . Locate Traps 1 | . 1 . Hauler Manifests 1 | . 1 . Zone Layout 1 | . 1 . Fabricator Hacks . | . . . Repair Station Hacks . | . . . Recycling Unit Hacks . | . . . Scanalyzer . | . . . Garrison Access Hacks . | . . . Unauthorized Hacks 2 | . 2 . Terminals 1 | . 1 . Operators 1 | . 1 . Fabricators . | . . . Repair Stations . | . . . Recycling Units 1 | . 1 . Tunnel 1 | . 1 . Scanalyzers . | . . . Garrison Access . | . . . Data Cores Recovered . | . . . Used . | . . . Hacking Detections 5 | . 5 . Full Trace Events . | . . . Feedback Events . | . . . Feedback Blocked . | . . . Robot Schematics Acquired . | . . . Robots Built . | . . . Authchips . | . . . Time . | . . . Total Robot Build Rating . | . . . Part Schematics Acquired . | . . . Parts Built . | . . . Authchips . | . . . Time . | . . . Total Part Build Rating . | . . . Parts Repaired . | . . . Time . | . . . Parts Recycled . | . . . Recycled Matter . | . . . Retrieved Matter . | . . . Retrieved Components . | . . . Parts Scanalyzed . | . . . Part Schematics Acquired . | . . . Parts Damaged . | . . . Bothacking | -11 -10 -10 ------------ Run | Scr Mat Min Used RIF Installer . | . . . Robots Hacked . | . . . Non-combat . | . . . Combat . | . . . Robot Hacks Applied . | . . . Relay Couplers Released . | . . . Fabnet Peak Effective % . | . . . Robots Rewired . | . . . Allies Hacked . | . . . Hacks Repelled . | . . . Allies | -11 -10 -10 -------- Run | Scr Mat Min Total Allies . | . . . Largest Group . | . . . Highest-Rated Group . | . . . Highest-Rated Ally . | . . . Total Orders . | . . . Ally Attacks . | . . . Total Damage . | . . . Kills . | . . . Allies Corrupted . | . . . Allies Melted . | . . . Intel | -11 -10 -10 ------- Run | Scr Mat Min Robot Analysis Total 3 | . 3 . Derelict Logs Recovered 1 | . . 1 Drone Launches . | . . . Drone Recoveries . | . . . Exploration | -11 -10 -10 ------------- Run | Scr Mat Min Turns Passed 1508 | 8 1164 336 Spaces Moved 634 | 3 533 98 Core . | . . . Treads 634 | 3 533 98 Legs . | . . . Wheels . | . . . Hover . | . . . Flight . | . . . Fastest Speed 160 | 160 160 320 Average Speed 204 | 160 183 320 Slowest Speed 320 | 160 320 320 Overloaded Moves . | . . . Propulsion Burnouts . | . . . Robots Hopped . | . . . Cave-ins Triggered . | . . . Exploration Rate (%) 43 | 2 94 33 Regions Visited 2 Branch Regions 1 Pre-discovered Areas 2 | . 1 1 Known Exits Taken . | . . . Unknown Exits Taken 2 | 1 1 . Scrap Searched . | . . . Spaces Dug . | . . . Terrain Destroyed 9 | . 9 . Melee . | . . . Projectile . | . . . AOE 9 | . 9 . Terrain Rammed . | . . . Walls Destroyed . | . . . Machines Disabled . | . . . Actions | -11 -10 -10 --------- Run | Scr Mat Min Total 760 | 8 640 112 Wait 28 | . 28 . Move 632 | 2 532 98 Hop . | . . . Pick Up 21 | . 21 . Fast Attach 1 | . 1 . Attach 9 | 2 1 6 Detach . | . . . Swap 7 | . 5 2 Drop 11 | 4 6 1 Fire 50 | . 45 5 Melee . | . . . Ram . | . . . Kick . | . . . Crush 1 | . 1 . Escape Stasis . | . . . Rewire . | . . . Trap . | . . . Miscellaneous . | . . . Route ------- -11/Scrapyard -10/Materials (discovered 5 exits: [*Mat x3] / [*Min x2]) -10/Mines (discovered 1 exit: [*Mat]) History --------- Turn | Location | Event 6 | -11/Scrapyard | Discovered new exit (range 0) 9 | -11/Scrapyard | Entered Materials 295 | -10/Materials | Discovered new exit (range 16) 305 | -10/Materials | Build established: Mutant 513 | -10/Materials | Discovered new exit (range 15) 538 | -10/Materials | Central database locked down 659 | -10/Materials | Discovered new exit (range 16) 846 | -10/Materials | Discovered new exit (range 10) 1069 | -10/Materials | Discovered new exit (range 15) 1173 | -10/Materials | Entered Mines 1255 | -10/Mines | Discovered new exit (range 13) 1474 | -10/Mines | Assembled infested the area 1497 | -10/Mines | Core integrity fell below 50% 1508 | -10/Mines | Core integrity fell below 20% 1509 | -10/Mines | Destroyed by D-53 Grenadier with Mini Grenade Launcher Last Messages --------------- Something is scanning the area. 01177_ Dropped Med. Laser. 01218_ K-01 Serf collects debris. 01255_ EXIT=FOUND 01373_ Acquired derelict log, extracted data. World map updated: -8/Materials. 01474_ ALERT: Infestation in the mines, dispatching Demolisher response squad. 01486_ C-30 ARC bursts open, deploying its payload. 01486_ D-53 Grenadier unfolds itself. 01495_ Lgt. Treads destroyed. 01496_ Lgt. Assault Rifle destroyed. 01497_ Lgt. Armor Plating destroyed. 01503_ The unstable cave ceiling collapses. 01503_ Lgt. Treads destroyed. 01503_ Lgt. Cannon destroyed. 01505_ The unstable cave ceiling collapses. 01505_ U-05 Engineer lays Concrete. 01505_ Ion Engine destroyed. 01506_ U-05 Engineer builds a Wall. Map ----- +----------------------------------------------------+ | ??# #???????####??## #???????????????? | | ??# #?????## #### #????????????????? | | ???# ##???# ## #????????????????? | | ????# ##??# ## [ #????????????????? | | ?????# #### ######## ##????????????????? | | ??????# ## ##??????####?????????????????? | | ???????# ##????????????????????????????? | | ??????## ##?????????????????????????????? | | ?????## ###??????????????????????????????? | | ????## ##????????????????????????????????? | | ????# #?????????????????????????????????? | | ???## ##?????????????????????????????????? | | ???# ##??????????????????????????????????? | | ???# #####???????????????????????????????????? | | ???## ##???????????????????????????????????????? | | ????## #?????????????????####???????????????????? | | ?????# #????????????????## ##??????????????????? | | ?????# #????????????????# #??????????????????? | | ??#### #????????????????# #??????????????????? | | ??# #??????????????### #??????????????????? | | ??# #?????????????## ##??????????????????? | | ??# ####?############# #??????????????????? | | ??# #????# "% %d ##?????????????????? | | ??# #????# " %u d #?????????????????? | | ### ##???# ###### ## #?????????????????? | | # ##### #????# # @ #?????????????????? | | # < #????# # ???????????? | | # #????# # ????????? | | # ########????# ## ########?????????? | | # #???????????# ### #????????????????? | | #######????????#### #?## #???????????????? | | ???????????????# #??# #???????????????? | | ???????????????# ####??## ##???????????????? | | ??????????????## #??????## ##????????????????? | | ?????????????## ##??????# ##?????????????????? | | ???????###???# #?????? ##??????????????????? | | ??????## #### #?????? ##???????????????????? | | ?????## ## ##?????? ##????????????????????? | | ????## ##??????? #??????????????????????? | | ????# ##????????????????????????????????? | | ???# ## ##?????????????????????????????????? | | ???# #?####??????????????????????????????????? | | ???## #????????????????????????????????????????? | | ????####?????????????????????????????????????????? | | ?????????????????????????????????????????????????? | | ?????????????????????????????????????????????????? | | | | | | | | | +----------------------------------------------------+ Best States ------------- Heat Dissipation 25 Energy Generation 10 Energy Capacity 250 Matter Stores 300 Matter Capacity 300 Sight Range 16 Terrain Scan Density 10 Armor Coverage 150 Evasion (%) 40 Recoil Reduction 2 Item Schematics ----------------- None Robot Schematics ------------------ None Fabricated ------------ Nothing Alien Tech Used ----------------- None Achievements -------------- None Challenges ------------ None Game ------ Seed DirtyPoweredScreen Manual? 0 Play Time 00:07:58 Cumulative 613.2 hours Start 2022.04.29 @ 16:39:27 End 2022.04.29 @ 16:46:20 Sessions 1 Manual Loads 0 Difficulty Rogue Special Mode None Game No. 576 Rogue 576 Adventurer 0 Explorer 0 Win Type - Total 22 Types 10/4/4/1/1/0/1/1/0 Lore% 88 Gallery% 95 Achievement% 77 Wizard Run 0 Options --------- ASCII 0 Keyboard 0 Movement Mouse Keybinds 1 Fullscreen 2 Font 24/Smallcaps Map View 76x50 Tactical HUD 1 Map Filters NONE Filters NONE Steam 1 RUN: 73c9f860-0687-47f9-85c2-85eefa03c9da